{"text_format":"3","workbook":"xlsx","n_sheets":1,"sheets":["Kişisel Aylık Bütçe"],"read":"whole","date_system":"1900"}

{"sheet":"Kişisel Aylık Bütçe","index":0,"n_rows":62,"n_cols":10,"rows_kept":62,"merged":[[0,1,0,9],[2,1,4,1],[2,2,2,3],[2,7,2,8],[3,2,3,3],[3,7,3,8],[4,2,4,3],[4,6,4,8],[5,1,7,1],[5,2,5,3],[5,7,5,8],[6,2,6,3],[6,7,6,8],[7,2,7,3],[7,6,7,8],[20,6,20,9],[21,1,21,4],[29,6,29,9],[31,1,31,4],[36,6,36,9],[38,1,38,4],[42,6,42,9],[44,1,44,4],[48,6,48,9],[52,1,52,4],[55,6,55,9]]}
[null,"Kişisel Aylık Bütçe"]
[]
[null,"TAHMİNİ AYLIK GELİR","Gelir 1",null,{"v":2500,"d":"2,500 ₺"},null,"TOPLAM TAHMİNİ GİDER ","(Tahmini gelirler ve giderler farkı)",null,{"$f":"SUM(C21,C31,C38,C44,C52,C62,H20,H29,H36,H42,H48,H55)","v":{"v":2060,"d":"2,060 ₺"}}]
[null,null,"Ek gelir",null,{"v":500,"d":"500 ₺"},null,"TOPLAM FİİLİ GİDER ","(Fiili gelirler ve giderler farkı)",null,{"$f":"SUM(D21,D31,D38,D44,D52,D62,I20,I29,I36,I42,I48,I55)","v":{"v":2040,"d":"2,040 ₺"}}]
[null,null,"Toplam aylık gelir",null,{"$f":"SUM(E3:E4)","v":{"v":3000,"d":"3,000 ₺"}},null,"Toplam Gider Farkı",null,null,{"$f":"SUM(E21,E31,E38,E44,E52,E62,J20,J29,J36,J42,J48,J55)","v":{"v":20,"d":"20 ₺"}}]
[null,"FİİLİ AYLIK GELİR","Gelir 1",null,{"v":2500,"d":"2,500 ₺"},null,"TAHMİNİ BAKİYE","(Tahmini gelirler ve giderler farkı)",null,{"$f":"E5-J3","v":{"v":940,"d":"940 ₺"}}]
[null,null,"Ek gelir",null,{"v":500,"d":"500 ₺"},null,"FİİLİ BAKİYE","(Fiili gelirler ve giderler farkı)",null,{"$f":"E8-J4","v":{"v":960,"d":"960 ₺"}}]
[null,null,"Toplam aylık gelir",null,{"$f":"SUM(E6:E7)","v":{"v":3000,"d":"3,000 ₺"}},null,"BAKİYE FARKI (Fiili eksi tahmini)",null,null,{"$f":"J7-J6","v":{"v":20,"d":"20 ₺"}}]
[]
[null,"BARINMA","Tahmini Maliyet","Fiili Masraf","Fark",null,"EĞLENCE","Tahmini Maliyet","Fiili Masraf","Fark"]
[null,"Konut kredisi veya kira",{"v":1500,"d":"1,500 ₺"},{"v":1400,"d":"1,400 ₺"},{"$f":"Barınma[[#This Row],[Tahmini Maliyet]]-Barınma[[#This Row],[Fiili Masraf]]","v":{"v":100,"d":"100 ₺"}},null,"Video/DVD",{"v":0,"d":"0 ₺"},{"v":50,"d":"50 ₺"},{"$f":"Eğlence[[#This Row],[Tahmini Maliyet]]-Eğlence[[#This Row],[Fiili Masraf]]","v":{"v":-50,"d":"-50 ₺"}}]
[null,"Telefon",{"v":60,"d":"60 ₺"},{"v":100,"d":"100 ₺"},{"$f":"Barınma[[#This Row],[Tahmini Maliyet]]-Barınma[[#This Row],[Fiili Masraf]]","v":{"v":-40,"d":"-40 ₺"}},null,"CD’ler",null,null,{"$f":"Eğlence[[#This Row],[Tahmini Maliyet]]-Eğlence[[#This Row],[Fiili Masraf]]","v":{"v":0,"d":"0 ₺"}}]
[null,"Elektrik",{"v":50,"d":"50 ₺"},{"v":60,"d":"60 ₺"},{"$f":"Barınma[[#This Row],[Tahmini Maliyet]]-Barınma[[#This Row],[Fiili Masraf]]","v":{"v":-10,"d":"-10 ₺"}},null,"Filmler",null,null,{"$f":"Eğlence[[#This Row],[Tahmini Maliyet]]-Eğlence[[#This Row],[Fiili Masraf]]","v":{"v":0,"d":"0 ₺"}}]
[null,"Doğalgaz",{"v":200,"d":"200 ₺"},{"v":180,"d":"180 ₺"},{"$f":"Barınma[[#This Row],[Tahmini Maliyet]]-Barınma[[#This Row],[Fiili Masraf]]","v":{"v":20,"d":"20 ₺"}},null,"Konserler",null,null,{"$f":"Eğlence[[#This Row],[Tahmini Maliyet]]-Eğlence[[#This Row],[Fiili Masraf]]","v":{"v":0,"d":"0 ₺"}}]
[null,"Su ve kanalizasyon",null,null,{"$f":"Barınma[[#This Row],[Tahmini Maliyet]]-Barınma[[#This Row],[Fiili Masraf]]","v":{"v":0,"d":"0 ₺"}},null,"Spor etkinlikleri",null,null,{"$f":"Eğlence[[#This Row],[Tahmini Maliyet]]-Eğlence[[#This Row],[Fiili Masraf]]","v":{"v":0,"d":"0 ₺"}}]
[null,"Kablolu TV",null,null,{"$f":"Barınma[[#This Row],[Tahmini Maliyet]]-Barınma[[#This Row],[Fiili Masraf]]","v":{"v":0,"d":"0 ₺"}},null,"Tiyatro",null,null,{"$f":"Eğlence[[#This Row],[Tahmini Maliyet]]-Eğlence[[#This Row],[Fiili Masraf]]","v":{"v":0,"d":"0 ₺"}}]
[null,"Atık temizleme",null,null,{"$f":"Barınma[[#This Row],[Tahmini Maliyet]]-Barınma[[#This Row],[Fiili Masraf]]","v":{"v":0,"d":"0 ₺"}},null,"Diğer",null,null,{"$f":"Eğlence[[#This Row],[Tahmini Maliyet]]-Eğlence[[#This Row],[Fiili Masraf]]","v":{"v":0,"d":"0 ₺"}}]
[null,"Bakım veya onarım",null,null,{"$f":"Barınma[[#This Row],[Tahmini Maliyet]]-Barınma[[#This Row],[Fiili Masraf]]","v":{"v":0,"d":"0 ₺"}},null,"Diğer",null,null,{"$f":"Eğlence[[#This Row],[Tahmini Maliyet]]-Eğlence[[#This Row],[Fiili Masraf]]","v":{"v":0,"d":"0 ₺"}}]
[null,"Malzemeler",null,null,{"$f":"Barınma[[#This Row],[Tahmini Maliyet]]-Barınma[[#This Row],[Fiili Masraf]]","v":{"v":0,"d":"0 ₺"}},null,"Diğer",null,null,{"$f":"Eğlence[[#This Row],[Tahmini Maliyet]]-Eğlence[[#This Row],[Fiili Masraf]]","v":{"v":0,"d":"0 ₺"}}]
[null,"Diğer",null,null,{"$f":"Barınma[[#This Row],[Tahmini Maliyet]]-Barınma[[#This Row],[Fiili Masraf]]","v":{"v":0,"d":"0 ₺"}},null,"Toplam",{"$f":"SUBTOTAL(109,Eğlence[Tahmini Maliyet])","v":{"v":0,"d":"0 ₺"}},{"$f":"SUBTOTAL(109,Eğlence[Fiili Masraf])","v":{"v":50,"d":"50 ₺"}},{"$f":"SUBTOTAL(109,Eğlence[Fark])","v":{"v":-50,"d":"-50 ₺"}}]
[null,"Toplam",{"$f":"SUBTOTAL(109,Barınma[Tahmini Maliyet])","v":{"v":1810,"d":"1,810 ₺"}},{"$f":"SUBTOTAL(109,Barınma[Fiili Masraf])","v":{"v":1740,"d":"1,740 ₺"}},{"$f":"SUBTOTAL(109,Barınma[Fark])","v":{"v":70,"d":"70 ₺"}}]
[{"$nulls":6},"KREDİLER","Tahmini Masraf","Fiili Masraf","Fark"]
[null,"ULAŞIM","Tahmini Masraf","Fiili Masraf","Fark",null,"Kişisel",null,null,{"$f":"Krediler[[#This Row],[Tahmini Masraf]]-Krediler[[#This Row],[Fiili Masraf]]","v":{"v":0,"d":"0 ₺"}}]
[null,"Araç ödemesi",{"v":250,"d":"250 ₺"},{"v":250,"d":"250 ₺"},{"$f":"Ulaşım[[#This Row],[Tahmini Masraf]]-Ulaşım[[#This Row],[Fiili Masraf]]","v":{"v":0,"d":"0 ₺"}},null,"Öğrenci",null,null,{"$f":"Krediler[[#This Row],[Tahmini Masraf]]-Krediler[[#This Row],[Fiili Masraf]]","v":{"v":0,"d":"0 ₺"}}]
[null,"Otobüs/taksi ücretleri",null,null,{"$f":"Ulaşım[[#This Row],[Tahmini Masraf]]-Ulaşım[[#This Row],[Fiili Masraf]]","v":{"v":0,"d":"0 ₺"}},null,"Kredi kartı",null,null,{"$f":"Krediler[[#This Row],[Tahmini Masraf]]-Krediler[[#This Row],[Fiili Masraf]]","v":{"v":0,"d":"0 ₺"}}]
[null,"Sigorta",null,null,{"$f":"Ulaşım[[#This Row],[Tahmini Masraf]]-Ulaşım[[#This Row],[Fiili Masraf]]","v":{"v":0,"d":"0 ₺"}},null,"Kredi kartı",null,null,{"$f":"Krediler[[#This Row],[Tahmini Masraf]]-Krediler[[#This Row],[Fiili Masraf]]","v":{"v":0,"d":"0 ₺"}}]
[null,"Ruhsat alma",null,null,{"$f":"Ulaşım[[#This Row],[Tahmini Masraf]]-Ulaşım[[#This Row],[Fiili Masraf]]","v":{"v":0,"d":"0 ₺"}},null,"Kredi kartı",null,null,{"$f":"Krediler[[#This Row],[Tahmini Masraf]]-Krediler[[#This Row],[Fiili Masraf]]","v":{"v":0,"d":"0 ₺"}}]
[null,"Yakıt",null,null,{"$f":"Ulaşım[[#This Row],[Tahmini Masraf]]-Ulaşım[[#This Row],[Fiili Masraf]]","v":{"v":0,"d":"0 ₺"}},null,"Diğer",null,null,{"$f":"Krediler[[#This Row],[Tahmini Masraf]]-Krediler[[#This Row],[Fiili Masraf]]","v":{"v":0,"d":"0 ₺"}}]
[null,"Bakım",null,null,{"$f":"Ulaşım[[#This Row],[Tahmini Masraf]]-Ulaşım[[#This Row],[Fiili Masraf]]","v":{"v":0,"d":"0 ₺"}},null,"Toplam",{"$f":"SUBTOTAL(109,Krediler[Tahmini Masraf])","v":{"v":0,"d":"0 ₺"}},{"$f":"SUBTOTAL(109,Krediler[Fiili Masraf])","v":{"v":0,"d":"0 ₺"}},{"$f":"SUBTOTAL(109,Krediler[Fark])","v":{"v":0,"d":"0 ₺"}}]
[null,"Diğer",null,null,{"$f":"Ulaşım[[#This Row],[Tahmini Masraf]]-Ulaşım[[#This Row],[Fiili Masraf]]","v":{"v":0,"d":"0 ₺"}}]
[null,"Toplam",{"$f":"SUBTOTAL(109,Ulaşım[Tahmini Masraf])","v":{"v":250,"d":"250 ₺"}},{"$f":"SUBTOTAL(109,Ulaşım[Fiili Masraf])","v":{"v":250,"d":"250 ₺"}},{"$f":"SUBTOTAL(109,Ulaşım[Fark])","v":{"v":0,"d":"0 ₺"}},null,"VERGİLER","Tahmini Masraf","Fiili Masraf","Fark"]
[{"$nulls":6},"Federal",null,null,{"$f":"Vergiler[[#This Row],[Tahmini Masraf]]-Vergiler[[#This Row],[Fiili Masraf]]","v":{"v":0,"d":"0 ₺"}}]
[null,"SİGORTA","Tahmini Masraf","Fiili Masraf","Fark",null,"Devlet",null,null,{"$f":"Vergiler[[#This Row],[Tahmini Masraf]]-Vergiler[[#This Row],[Fiili Masraf]]","v":{"v":0,"d":"0 ₺"}}]
[null,"Ev",null,null,{"$f":"Sigorta[[#This Row],[Tahmini Masraf]]-Sigorta[[#This Row],[Fiili Masraf]]","v":{"v":0,"d":"0 ₺"}},null,"Belediye",null,null,{"$f":"Vergiler[[#This Row],[Tahmini Masraf]]-Vergiler[[#This Row],[Fiili Masraf]]","v":{"v":0,"d":"0 ₺"}}]
[null,"Sağlık",null,null,{"$f":"Sigorta[[#This Row],[Tahmini Masraf]]-Sigorta[[#This Row],[Fiili Masraf]]","v":{"v":0,"d":"0 ₺"}},null,"Diğer",null,null,{"$f":"Vergiler[[#This Row],[Tahmini Masraf]]-Vergiler[[#This Row],[Fiili Masraf]]","v":{"v":0,"d":"0 ₺"}}]
[null,"Yaşam",null,null,{"$f":"Sigorta[[#This Row],[Tahmini Masraf]]-Sigorta[[#This Row],[Fiili Masraf]]","v":{"v":0,"d":"0 ₺"}},null,"Toplam",{"$f":"SUBTOTAL(109,Vergiler[Tahmini Masraf])","v":{"v":0,"d":"0 ₺"}},{"$f":"SUBTOTAL(109,Vergiler[Fiili Masraf])","v":{"v":0,"d":"0 ₺"}},{"$f":"SUBTOTAL(109,Vergiler[Fark])","v":{"v":0,"d":"0 ₺"}}]
[null,"Diğer",null,null,{"$f":"Sigorta[[#This Row],[Tahmini Masraf]]-Sigorta[[#This Row],[Fiili Masraf]]","v":{"v":0,"d":"0 ₺"}}]
[null,"Toplam",{"$f":"SUBTOTAL(109,Sigorta[Tahmini Masraf])","v":{"v":0,"d":"0 ₺"}},{"$f":"SUBTOTAL(109,Sigorta[Fiili Masraf])","v":{"v":0,"d":"0 ₺"}},{"$f":"SUBTOTAL(109,Sigorta[Fark])","v":{"v":0,"d":"0 ₺"}},null,"BİRİKİMLER VE YATIRIMLAR","Tahmini Masraf","Fiili Masraf","Fark"]
[{"$nulls":6},"Emeklilik hesabı",null,null,{"$f":"BirikimlerVeyaYatırım[[#This Row],[Tahmini Masraf]]-BirikimlerVeyaYatırım[[#This Row],[Fiili Masraf]]","v":{"v":0,"d":"0 ₺"}}]
[null,"YİYECEK","Tahmini Masraf","Fiili Masraf","Fark",null,"Yatırım hesabı",null,null,{"$f":"BirikimlerVeyaYatırım[[#This Row],[Tahmini Masraf]]-BirikimlerVeyaYatırım[[#This Row],[Fiili Masraf]]","v":{"v":0,"d":"0 ₺"}}]
[null,"Market",null,null,{"$f":"Yiyecek[[#This Row],[Tahmini Masraf]]-Yiyecek[[#This Row],[Fiili Masraf]]","v":{"v":0,"d":"0 ₺"}},null,"Diğer",null,null,{"$f":"BirikimlerVeyaYatırım[[#This Row],[Tahmini Masraf]]-BirikimlerVeyaYatırım[[#This Row],[Fiili Masraf]]","v":{"v":0,"d":"0 ₺"}}]
[null,"Dışarıda yemek",null,null,{"$f":"Yiyecek[[#This Row],[Tahmini Masraf]]-Yiyecek[[#This Row],[Fiili Masraf]]","v":{"v":0,"d":"0 ₺"}},null,"Toplam",{"$f":"SUBTOTAL(109,BirikimlerVeyaYatırım[Tahmini Masraf])","v":{"v":0,"d":"0 ₺"}},{"$f":"SUBTOTAL(109,BirikimlerVeyaYatırım[Fiili Masraf])","v":{"v":0,"d":"0 ₺"}},{"$f":"SUBTOTAL(109,BirikimlerVeyaYatırım[Fark])","v":{"v":0,"d":"0 ₺"}}]
[null,"Diğer",null,null,{"$f":"Yiyecek[[#This Row],[Tahmini Masraf]]-Yiyecek[[#This Row],[Fiili Masraf]]","v":{"v":0,"d":"0 ₺"}}]
[null,"Toplam",{"$f":"SUBTOTAL(109,Yiyecek[Tahmini Masraf])","v":{"v":0,"d":"0 ₺"}},{"$f":"SUBTOTAL(109,Yiyecek[Fiili Masraf])","v":{"v":0,"d":"0 ₺"}},{"$f":"SUBTOTAL(109,Yiyecek[Fark])","v":{"v":0,"d":"0 ₺"}},null,"HEDİYELER VE BAĞIŞLAR","Tahmini Masraf","Fiili Masraf","Fark"]
[{"$nulls":6},"Hayır kurumu 1",null,null,{"$f":"HediyelerVeBağışlar[[#This Row],[Tahmini Masraf]]-HediyelerVeBağışlar[[#This Row],[Fiili Masraf]]","v":{"v":0,"d":"0 ₺"}}]
[null,"EVCİL HAYVANLAR","Tahmini Masraf","Fiili Masraf","Fark",null,"Hayır kurumu 2",null,null,{"$f":"HediyelerVeBağışlar[[#This Row],[Tahmini Masraf]]-HediyelerVeBağışlar[[#This Row],[Fiili Masraf]]","v":{"v":0,"d":"0 ₺"}}]
[null,"Yiyecek",null,null,{"$f":"Evcil_Hayvanlar[[#This Row],[Tahmini Masraf]]-Evcil_Hayvanlar[[#This Row],[Fiili Masraf]]","v":{"v":0,"d":"0 ₺"}},null,"Hayır kurumu 3",null,null,{"$f":"HediyelerVeBağışlar[[#This Row],[Tahmini Masraf]]-HediyelerVeBağışlar[[#This Row],[Fiili Masraf]]","v":{"v":0,"d":"0 ₺"}}]
[null,"Sağlık",null,null,{"$f":"Evcil_Hayvanlar[[#This Row],[Tahmini Masraf]]-Evcil_Hayvanlar[[#This Row],[Fiili Masraf]]","v":{"v":0,"d":"0 ₺"}},null,"Toplam",{"$f":"SUBTOTAL(109,HediyelerVeBağışlar[Tahmini Masraf])","v":{"v":0,"d":"0 ₺"}},{"$f":"SUBTOTAL(109,HediyelerVeBağışlar[Fiili Masraf])","v":{"v":0,"d":"0 ₺"}},{"$f":"SUBTOTAL(109,HediyelerVeBağışlar[Fark])","v":{"v":0,"d":"0 ₺"}}]
[null,"Bakım",null,null,{"$f":"Evcil_Hayvanlar[[#This Row],[Tahmini Masraf]]-Evcil_Hayvanlar[[#This Row],[Fiili Masraf]]","v":{"v":0,"d":"0 ₺"}}]
[null,"Oyuncak",null,null,{"$f":"Evcil_Hayvanlar[[#This Row],[Tahmini Masraf]]-Evcil_Hayvanlar[[#This Row],[Fiili Masraf]]","v":{"v":0,"d":"0 ₺"}},null,"YASAL İŞLEMLER","Tahmini Masraf","Fiili Masraf","Fark"]
[null,"Diğer",null,null,{"$f":"Evcil_Hayvanlar[[#This Row],[Tahmini Masraf]]-Evcil_Hayvanlar[[#This Row],[Fiili Masraf]]","v":{"v":0,"d":"0 ₺"}},null,"Avukat",null,null,{"$f":"Yasal_İşlemler[[#This Row],[Tahmini Masraf]]-Yasal_İşlemler[[#This Row],[Fiili Masraf]]","v":{"v":0,"d":"0 ₺"}}]
[null,"Toplam",{"$f":"SUBTOTAL(109,Evcil_Hayvanlar[Tahmini Masraf])","v":{"v":0,"d":"0 ₺"}},{"$f":"SUBTOTAL(109,Evcil_Hayvanlar[Fiili Masraf])","v":{"v":0,"d":"0 ₺"}},{"$f":"SUBTOTAL(109,Evcil_Hayvanlar[Fark])","v":{"v":0,"d":"0 ₺"}},null,"Nafaka",null,null,{"$f":"Yasal_İşlemler[[#This Row],[Tahmini Masraf]]-Yasal_İşlemler[[#This Row],[Fiili Masraf]]","v":{"v":0,"d":"0 ₺"}}]
[{"$nulls":6},"Hacizli veya kararın çıktığı ödemeler",null,null,{"$f":"Yasal_İşlemler[[#This Row],[Tahmini Masraf]]-Yasal_İşlemler[[#This Row],[Fiili Masraf]]","v":{"v":0,"d":"0 ₺"}}]
[null,"KİŞİSEL BAKIM","Tahmini Masraf","Fiili Masraf","Fark",null,"Diğer",null,null,{"$f":"Yasal_İşlemler[[#This Row],[Tahmini Masraf]]-Yasal_İşlemler[[#This Row],[Fiili Masraf]]","v":{"v":0,"d":"0 ₺"}}]
[null,"Sağlık",null,null,{"$f":"KişiselBakım[[#This Row],[Tahmini Masraf]]-KişiselBakım[[#This Row],[Fiili Masraf]]","v":{"v":0,"d":"0 ₺"}},null,"Toplam",{"$f":"SUBTOTAL(109,Yasal_İşlemler[Tahmini Masraf])","v":{"v":0,"d":"0 ₺"}},{"$f":"SUBTOTAL(109,Yasal_İşlemler[Fiili Masraf])","v":{"v":0,"d":"0 ₺"}},{"$f":"SUBTOTAL(109,Yasal_İşlemler[Fark])","v":{"v":0,"d":"0 ₺"}}]
[null,"Kuaför",null,null,{"$f":"KişiselBakım[[#This Row],[Tahmini Masraf]]-KişiselBakım[[#This Row],[Fiili Masraf]]","v":{"v":0,"d":"0 ₺"}}]
[null,"Giyim",null,null,{"$f":"KişiselBakım[[#This Row],[Tahmini Masraf]]-KişiselBakım[[#This Row],[Fiili Masraf]]","v":{"v":0,"d":"0 ₺"}}]
[null,"Kuru temizleme",null,null,{"$f":"KişiselBakım[[#This Row],[Tahmini Masraf]]-KişiselBakım[[#This Row],[Fiili Masraf]]","v":{"v":0,"d":"0 ₺"}}]
[null,"Sağlık kulübü",null,null,{"$f":"KişiselBakım[[#This Row],[Tahmini Masraf]]-KişiselBakım[[#This Row],[Fiili Masraf]]","v":{"v":0,"d":"0 ₺"}}]
[null,"Kuruluş aidatları veya ücretleri",null,null,{"$f":"KişiselBakım[[#This Row],[Tahmini Masraf]]-KişiselBakım[[#This Row],[Fiili Masraf]]","v":{"v":0,"d":"0 ₺"}}]
[null,"Diğer",null,null,{"$f":"KişiselBakım[[#This Row],[Tahmini Masraf]]-KişiselBakım[[#This Row],[Fiili Masraf]]","v":{"v":0,"d":"0 ₺"}}]
[null,"Toplam",{"$f":"SUBTOTAL(109,KişiselBakım[Tahmini Masraf])","v":{"v":0,"d":"0 ₺"}},{"$f":"SUBTOTAL(109,KişiselBakım[Fiili Masraf])","v":{"v":0,"d":"0 ₺"}},{"$f":"SUBTOTAL(109,KişiselBakım[Fark])","v":{"v":0,"d":"0 ₺"}}]